Workbook

Sheet 27.02-4.03,13-18.03,27.03-1.04
A1: Школа | B1: МБОУ "Школа №113" | E1: Отд./корп | I1: День | J1: 2023-03-03
A3: Прием пищи | B3: Раздел | C3: № рец. | D3: Блюдо | E3: Выход, г | F3: Цена | G3: Калорийность | H3: Белки | I3: Жиры | J3: Углеводы
A4: Завтрак | B4: гор.блюдо | C4: ТТК 2022 г | D4: Плов с куриными грудками | E4: 200 | G4: 325 | H4: 13.4 | I4: 11.9 | J4: 41.1
B5: гор.напиток | C5: ТТК 2021г | D5: Компот из замороженной вишни | E5: 180 | G5: 43 | H5: 0.1 | I5: 0.03 | J5: 10.41
A6: пятница | B6: хлеб | D6: Хлеб ржано-пшеничный | E6: 15 | G6: 33 | H6: 0.75 | I6: 0.15 | J6: 6.75
B7: хлеб | D7: Хлеб пшеничный | E7: 20 | G7: 47.00 | H7: 1.52 | I7: 0.16 | J7: 9.84
B8: закуска | C8: №81/2013 г | D8: Салат из свеклы с сыром | E8: 60 | G8: 79.00 | H8: 3.10 | I8: 5.44 | J8: 4.31
B9: фрукты | C9: № 336/2015 г | D9: Плоды свежие (яблоки) | E9: 100 | G9: 47.00 | H9: 0.4 | I9: 0.4 | J9: 9.8
A11: ИТОГО | E11: =E4+E5+E6+E7+E8+E9 -> 575 | F11: 62.10 | G11: =G4+G5+G6+G7+G8+G9 -> 574 | H11: =H4+H5+H6+H7+H8+H9 -> 19.27 | I11: =I4+I5+I6+I7+I8+I9 -> 18.08 | J11: =J4+J5+J6+J7+J8+J9 -> 82.21

Sheet 6-11.03, 20-25.03
A1: Школа | B1: - | E1: Отд./корп | I1: День
A3: Прием пищи | B3: Раздел | C3: № рец. | D3: Блюдо | E3: Выход, г | F3: Цена | G3: Калорийность | H3: Белки | I3: Жиры | J3: Углеводы
A4: Завтрак | B4: гор.блюдо | C4: ТТК 2022 г | D4: Ёжики мясные с рисом в соусе томатном | E4: 100 | G4: 170.00 | H4: 9.56 | I4: 10.92 | J4: 9.00
B5: гор блюдо | C5: № 202/2015 г | D5: Макаронные изделия отварные | E5: 150 | G5: 207.00 | H5: 5.64 | I5: 4.46 | J5: 35.94
B6: гор.напиток | C6: № 648/2004 г | D6: Кисель из концентрата | E6: 180 | G6: 47.00 | H6: 0.00 | I6: 0.00 | J6: 11.79
A7: понедельник | B7: хлеб | D7: Хлеб ржано-пшеничный | E7: 15 | G7: 33.00 | H7: 0.75 | I7: 0.15 | J7: 6.75
B8: хлеб | D8: Хлеб пшеничный | E8: 15 | G8: 35.00 | H8: 1.14 | I8: 0.12 | J8: 7.38
B9: фрукты | C9: №338/2015 г | D9: Плоды свежие (яблоки) | E9: 100 | G9: 47.00 | H9: 0.40 | I9: 0.40 | J9: 9.80
C10: ТТК | D10: Кукуруза консервированная (доп.гарнир) | E10: 25 | G10: 17.00 | H10: 0.69 | I10: 0.20 | J10: 2.95
A12: ИТОГО | E12: =E4+E5+E6+E7+E8+E9+E10 -> 585 | F12: 62.10 | G12: =G4+G5+G6+G7+G8+G9+G10 -> 556 | H12: =H4+H5+H6+H7+H8+H9+H10 -> 18.18 | I12: =I4+I5+I6+I7+I8+I9+I10 -> 16.25 | J12: =J4+J5+J6+J7+J8+J9+J10 -> 83.61
A13: Завтрак | B13: гор.блюдо | C13: ТТК 2021 | D13: Жаркое из птицы | E13: 190 | G13: 265.00 | H13: 13.52 | I13: 13.68 | J13: 21.91
A14: вторник | B14: гор.напиток | C14: ТТК 2021 г | D14: Чай без сахара | E14: 180 | G14: 0 | H14: 0.01 | I14: 0.005 | J14: 0.005
B15: хлеб | D15: Хлеб ржано-пшеничный | E15: 25 | G15: 55.00 | H15: 1.25 | I15: 0.25 | J15: 11.25
B16: фрукты | C16: № 338/2015г | D16: Плоды свежие (яблоки) | E16: 100 | G16: 47.00 | H16: 0.40 | I16: 0.40 | J16: 9.80
B17: закуска | C17: № 47/2015 г | D17: Салат из квашенной капусты | E17: 60 | G17: 51.00 | H17: 0.98 | I17: 3.05 | J17: 4.63
B18: печенье | C18: АКТ 2019 | D18: Печенье весовое | E18: 30 | G18: 117.00 | H18: 2.07 | I18: 2.14 | J18: 22.23
A20: ИТОГО | E20: =E13+E14+E15+E16+E17+E18 -> 585 | F20: 62.10 | G20: =G13+G14+G15+G16+G17+G18 -> 535.00 | H20: =H13+H14+H15+H16+H17+H18 -> 18.23 | I20: =I13+I14+I15+I16+I17+I18 -> 19.53 | J20: =J13+J14+J15+J16+J17+J18 -> 69.83
B21: гор.блюдо | C21: ТТК 2021 г | D21: Соус мясной "Смак" | E21: 90 | G21: 125.00 | H21: 7.55 | I21: 8.61 | J21: 4.38
A22: Завтрак | B22: гор.блюдо | C22: № 304/2015 г | D22: Рис отварной | E22: 150 | G22: 224 | H22: 3.83 | I22: 5.43 | J22: 40.01
B23: гор.напиток | C23: ТТК 2023 г | D23: Напиток из замороженной черной смородины | E23: 180 | G23: 40.00 | H23: 0.09 | I23: 0.03 | J23: 9.84
A24: среда | B24: хлеб | D24: Хлеб ржано-пшеничный | E24: 15 | G24: 33.00 | H24: 0.75 | I24: 0.15 | J24: 6.75
B25: хлеб | D25: Хлеб пшеничный | E25: 20 | G25: 47.00 | H25: 1.52 | I25: 0.16 | J25: 9.84
C26: ТТК | D26: Горошек зеленый отварной (доп.гарнир) | E26: 55 | G26: 62.00 | H26: 3.18 | I26: 1.89 | J26: 5.57
A28: ИТОГО | E28: =E22+E23+E24+E25+E21+E26 -> 510 | F28: 62.10 | G28: =G22+G23+G24+G25+G26+G21 -> 531.00 | H28: =H22+H23+H24+H25+H26+H21 -> 16.92 | I28: =I22+I23+I24+I25+I26+I21 -> 16.27 | J28: =J22+J23+J24+J25+J26+J21 -> 76.39
A29: Завтрак | B29: гор.блюдо | C29: ТТК | D29: Гуляш из птицы | E29: 100 | G29: 126.00 | H29: 8.05 | I29: 9.27 | J29: 3.13
B30: гор.блюдо | C30: № 302/2015 г | D30: Каша гречневая рассыпчатая | E30: 150 | G30: 242.00 | H30: 6.62 | I30: 5.39 | J30: 41.87
B31: гор.напиток | C31: ТТК 2021 г | D31: Напиток из шиповника | E31: 180 | G31: 37.00 | H31: 0.01 | I31: 0.00 | J31: 9.16
B32: хлеб | D32: Хлеб ржано-пшеничный | E32: 25 | G32: 55.00 | H32: 1.25 | I32: 0.25 | J32: 11.25
A33: четверг | B33: закуска | C33: № 52/2015 г | D33: Свекла отварная с маслом | E33: 60 | G33: 56.00 | H33: 0.85 | I33: 3.65 | J33: 5.02
B34: фрукты | C34: №338/2015 г | D34: Плоды свежие (яблоки) | E34: 100 | G34: 47.00 | H34: 0.40 | I34: 0.40 | J34: 9.80
A36: ИТОГО | E36: =E29+E30+E31+E32+E33+E34+E35 -> 615 | F36: 62.10 | G36: =G29+G30+G31+G32+G33+G34+G35 -> 563.00 | H36: =H29+H30+H31+H32+H33+H34+H35 -> 17.18 | I36: =I29+I30+I31+I32+I33+I34+I35 -> 18.96 | J36: =J29+J30+J31+J32+J33+J34+J35 -> 80.23
A37: Завтрак | B37: гор.блюдо | C37: ТТК 2021 г | D37: Биточки рыбные из фарша минтая | E37: 90 | G37: 171 | H37: 9.2 | I37: 11.5 | J37: 6.6
B38: гор. блюдо | C38: № 312/2015 г | D38: Пюре кртофельное | E38: 150 | G38: 146 | H38: 3.28 | I38: 4.65 | J38: 22.02
B39: гор.напиток | C39: №348/2015 г | D39: Компот из плодов сушеных (урюк) | E39: 180 | G39: 42 | H39: 0.90 | I39: 0.07 | J39: 9.50
A40: пятница | B40: хлеб | D40: Хлеб ржано-пшеничный | E40: 20 | G40: 44.00 | H40: 1.00 | I40: 0.20 | J40: 9.00
B41: хлеб | D41: Хлеб пшеничный | E41: 20 | G41: 47.00 | H41: 1.52 | I41: 0.16 | J41: 9.84
C42: Акт 2018 г | D42: Блинчики со сгущенным молоком | E42: 55 | G42: 114.00 | H42: 3.19 | I42: 2.52 | J42: 19.50
A44: ИТОГО | E44: =E37+E38+E39+E40+E41+E42 -> 515 | F44: 62.10 | G44: =G37+G38+G39+G40+G41+G42 -> 564 | H44: =H37+H38+H39+H40+H41+H42 -> 19.09 | I44: =I37+I38+I39+I40+I41+I42 -> 19.10 | J44: =J37+J38+J39+J40+J41+J42 -> 76.46
A45: Завтрак | B45: гор.блюдо | C45: № 243/2015 г | D45: Сосиски отварные | E45: 100 | G45: 144 | H45: 9.40 | I45: 11.00 | J45: 1.80
B46: гор.блюдо | C46: № 202/2015 г | D46: Макаронные изделия отваренные | E46: 150 | G46: 207 | H46: 5.64 | I46: 4.46 | J46: 35.94
B47: гор.напиток | C47: ТТК | D47: Напиток яблочный | E47: 180 | G47: 46 | H47: 0.09 | I47: 0.09 | J47: 11.18
A48: суббота | B48: хлеб | D48: Хлеб ржано-пшеничный | E48: 20 | G48: 44.00 | H48: 1.00 | I48: 0.20 | J48: 9.00
B49: хлеб | D49: Хлеб пшеничный | E49: 20 | G49: 47.00 | H49: 1.52 | I49: 0.16 | J49: 9.84
C50: ТТК | D50: Кукуруза консервированная (доп. гарнир) | E50: 30 | G50: 20.00 | H50: 0.83 | I50: 0.24 | J50: 3.54
A52: ИТОГО | E52: =E45+E46+E47+E48+E49+E50 -> 500 | F52: 62.10 | G52: =G45+G46+G47+G48+G49+G50 -> 508 | H52: =H45+H46+H47+H48+H50+H49 -> 18.48 | I52: =I45+I46+I47+I48+I50+I49 -> 16.15 | J52: =J45+J46+J47+J48+J50+J49 -> 71.30
